Workbook

Sheet ФОТ (общий ФОТ) (hidden)
A4: № п.п. | B4: Наименование МО | C4: Фонд оплаты труда, учитывающий достижение целевых показателей уровня заработной платы медицинских работников, установленных региональной "дорожной картой" | E4: ИТОГО ФОТ на 2016 год | F4: ФОТ на 2014 год | H4: ФОТ на 2015 год
C5: рассчёт МО по тарификации | D5: стимулирующие | F5: утверждено | G5: разница с 2016 годом | H5: утверждено | I5: разница с 2016 годом
A6: 1 | B6: 2 | C6: 3 | D6: 4 | E6: 5 | F6: 7 | G6: 8 | H6: 7 | I6: 8
A7: 1 | B7: МОГБУЗ "Станция скорой медицинской помощи" | C7: =E7-D7 -> 126088.4 | D7: 10011.6 | E7: 136100 | H7: 124990.68 | I7: =E7-H7 -> 11109.32
A8: 2 | B8: МОГБУЗ "Ольская РБ" | C8: =E8-D8 -> 11871.6 | D8: 1328.4 | E8: 13200 | F8: 13087.74 | G8: =E8-F8 -> 112.26 | H8: 16618.05 | I8: =E8-H8 -> -3418.05
A9: 3 | B9: МОГБУЗ "Омсукчанская РБ" | C9: 7406.2 | D9: 793.8 | E9: 8200 | F9: 6268.79 | G9: =E9-F9 -> 1931.21 | H9: 7399.73 | I9: =E9-H9 -> 800.27
A10: 4 | B10: МОГБУЗ "Среднеканская РБ" | C10: 5713 | D10: 567 | E10: 6280 | F10: 5537.02 | G10: 742.98 | H10: 6279.38 | I10: 0.62
A11: 5 | B11: МОГБУЗ "Сусуманская РБ" | C11: 13812.4 | D11: 1587.6 | E11: 15400 | F11: 14066.11 | G11: 1333.89 | H11: =SUM(F11:G11) -> 15400 | I11: 0
A12: 6 | B12: МОГБУЗ "Тенькинская РБ" | C12: 14011.8 | D12: 988.2 | E12: 15000 | F12: 11068.87 | G12: 3931.13 | H12: 14992.52 | I12: 7.48
A13: 7 | B13: МОГБУЗ "Хасынская РБ" | C13: 10733 | D13: 567 | E13: 11300 | F13: 12576.16 | G13: -1276.16 | H13: 8695.68 | I13: 2604.32
A14: 8 | B14: МОГБУЗ "Ягоднинская РБ" | C14: 13272.2 | D14: 1927.8 | E14: 15200 | F14: 15392.08 | G14: -192.08 | H14: 10470.85 | I14: 4729.15
B15: ИТОГО | C15: =SUM(C7:C14) -> 202908.6 | D15: =SUM(D7:D14) -> 17771.4 | E15: =SUM(E7:E14) -> 220680

Sheet Коэф. по ФОТ (2) (hidden)
A1: РАСЧЁТ
A2: КОЭФФИЦИЕНТОВ ДИФФЕРЕНЦИАЦИИ УЧИТЫВАЮЩЕГО ДОСТИЖЕНИЕ ЦЕЛЕВЫХ ПОКАЗАТЕЛЕЙ УРОВНЯ ЗАРАБОТНОЙ ПЛАТЫ МЕДИЦИНСКИХ РАБОТНИКОВ, УСТАНОВЛЕННЫХ РЕГИОНАЛЬНОЙ "ДОРОЖНОЙ КАРТОЙ"
A4: № п.п. | B4: Наименование МО | C4: Численность обслуживаемых, застрахованных лиц на 01.01.16 (чел.) | D4: Фонд оплаты труда, учитывающий достижение целевых показателей уровня заработной платы медицинских работников, установленных региональной "дорожной картой" | E4: Фонд оплаты труда, рассчитанный по подушевому нормативу | F4: Коэффициент дифференциации, учитывающий достижение целевых показателей уровня заработной платы медицинских работников, установленных региональной "дорожной картой" (КДЗП)
A7: 1 | B7: 2 | C7: 3 | D7: 4 | E7: 5 | F7: 6
A8: 1 | B8: МОГБУЗ "Станция скорой медицинской помощи" | C8: =#REF! ->  | D8: 135661.7 | E8: =ROUND($D$16/$C$16*C8,2) ->  | F8: =ROUND(D8/E8,3) ->  | G8: 135661.7
A9: 2 | B9: МОГБУЗ "Ольская РБ" | C9: =#REF! ->  | D9: 13000 | E9: =ROUND($D$16/$C$16*C9,2) ->  | F9: =ROUND(D9/E9,3) ->  | G9: 15000
A10: 3 | B10: МОГБУЗ "Омсукчанская РБ" | C10: =#REF! ->  | D10: 8700 | G10: 8500
A11: 4 | B11: МОГБУЗ "Среднеканская РБ" | C11: =#REF! ->  | D11: 6300 | G11: 6600
A12: 5 | B12: МОГБУЗ "Сусуманская РБ" | C12: =#REF! ->  | D12: 16000 | G12: 16500
A13: 6 | B13: МОГБУЗ "Тенькинская РБ" | C13: =#REF! ->  | D13: 11000 | G13: 15000
A14: 7 | B14: МОГБУЗ "Хасынская РБ" | C14: =#REF! ->  | D14: 9000 | G14: 11300
A15: 8 | B15: МОГБУЗ "Ягоднинская РБ" | C15: =#REF! ->  | D15: 14000 | G15: 15660
B16: ИТОГО Магаданская область (без Северо-Эвенского района) | C16: =SUM(C8:C15) ->  | D16: =SUM(D8:D15) -> 213661.7 | E16: =SUM(E8:E15) -> 

Sheet СМП 2017 (2) (hidden)
C3: Объем финансового обеспечения медицинских организаций, оказывающих скорую медицинскую помощь с 01.01.2017 года | Q3: для расчётов
B4: № п.п. | C4: Наименование МО | D4: Объемы по нормативу ТПОМС (0,327) | E4: Подушевой норматив финасирования СМП в месяц | F4: Численность прикрепленных, застрахованных лиц на 01.04.16 (чел.) | G4: Коэффициенты дифференциации | L4: Дифференцированны подушевой норматив финасирования СМП для i группы | M4: Поправочный коэффициент | N4: Фактический дифференцированный подушевой норматив финансирования СМП для i группы | O4: Объем финансового обеспечения медицинской организации, оказывающей СМП по подушевому финансированию с 01.01.2017г. | P4: Объем финансового обеспечения медицинской организации, оказывающей СМП по подушевому финансированию | Q4: для расчёта ПК
G5: По половозрастной структуре | H5: По уровню ФОТ | I5: По плотности населения | J5: Интегрированный коэфициент | K5: Средневзвешенное значение Кдинт
G6: КДПВС | H6: КДЗП | I6: КДПН | J6: КДИНТ | K6: СКД интi | L6: Дпнi | M6: ПК | N6: ФДпнi | O6: в месяц | P6: на год | R6: не удалять - участвует в расчётах
B7: 1 | C7: 2 | E7: 3 | F7: 4 | G7: 5 | H7: 6 | I7: 7 | J7: 8 | K7: 9 | L7: 10 | M7: 11 | N7: 12 | O7: 13 | P7: 14
A8: 1343001 | B8: 1 | C8: МОГБУЗ "Станция скорой медицинской помощи" | D8: 6765 | E8: =ROUND(313620790/'СМП 2017 (2)'!F16/12,2) ->  | F8: =#REF! ->  | G8: =#REF! ->  | H8: ='Коэф. по ФОТ (2)'!F8 ->  | I8: ='Коэф. плотности'!F8 ->  | J8: =G8*H8*I8 ->  | K8: =S9/U9 ->  | L8: =ROUND(E8*K8,2) ->  | M8: =ROUND(Q16/Q17,9) ->  | N8: =L8/M8 ->  | O8: =ROUND(F8*$N$8,2) ->  | P8: =ROUND(O8*12,2) ->  | Q8: =ROUND($L$8*F8,2) ->  | R8: =E8*F8*J8 ->  | T8: =E8*F8 ->  | V8: 182955.86 | X8: =P8-'СМП 2023 '!M13 ->  | Y8: =P8/#REF! -> 
B9: 2 | C9: МОГБУЗ "Хасынская РБ" | D9: 20230 | E9: =E12 ->  | F9: =#REF! ->  | G9: =#REF! ->  | H9: ='Коэф. по ФОТ (2)'!F14 ->  | I9: ='Коэф. плотности'!F14 ->  | J9: =G9*H9*I9 ->  | O9: =ROUND(F9*$N$8,2) ->  | Q9: =ROUND(L8*F9,2) ->  | S9: =R9+R8 ->  | T9: =E9*F9 ->  | U9: =T9+T8 ->  | V9: 15230.61 | X9: =P9-'СМП 2023 '!#REF! ->  | Y9: =P9/#REF! -> 
B10: 4 | C10: МОГБУЗ "Ольская РБ" | D10: 7000 | E10: =E8 ->  | F10: =#REF! ->  | G10: =#REF! ->  | H10: ='Коэф. по ФОТ (2)'!F9 ->  | I10: ='Коэф. плотности'!F9 ->  | J10: =G10*H10*I10 ->  | K10: =S11/U11 ->  | L10: =ROUND(E8*K10,2) ->  | N10: =L10/M8 ->  | O10: =ROUND(F10*$N$10,2) ->  | Q10: =ROUND(L10*F10,2) ->  | T10: =E10*F10 ->  | V10: 20070.49 | X10: =P10-'СМП 2023 '!#REF! ->  | Y10: =P10/#REF! -> 
B11: 3 | C11: МОГБУЗ "Ягоднинская РБ" | D11: 9000 | E11: =E9 ->  | F11: =#REF! ->  | G11: =#REF! ->  | H11: ='Коэф. по ФОТ (2)'!F15 ->  | I11: ='Коэф. плотности'!F15 ->  | O11: =ROUND(F11*$N$10,2) ->  | Q11: =ROUND($L$10*F11,2) ->  | S11: =R11+R10 ->  | T11: =E11*F11 ->  | U11: =T11+T10 ->  | V11: 20756.27 | X11: =P11-'СМП 2023 '!#REF! ->  | Y11: =P11/#REF! -> 
B12: 5 | C12: МОГБУЗ "Омсукчанская РБ" | D12: 5000 | E12: =E10 ->  | F12: =#REF! ->  | G12: =#REF! ->  | H12: ='Коэф. по ФОТ (2)'!F10 ->  | I12: ='Коэф. плотности'!F10 ->  | J12: =G12*H12*I12 ->  | K12: =S13/U13 ->  | L12: =ROUND(E10*K12,2) ->  | N12: =L12/M8 ->  | O12: =ROUND(F12*$N$12,2) ->  | P12: =ROUND(O12*12,2) ->  | Q12: =ROUND(L12*F12,2) ->  | R12: =E12*F12*J12 ->  | T12: =E12*F12 ->  | V12: 10722.07 | X12: =P12-'СМП 2023 '!#REF! ->  | Y12: =P12/#REF! -> 
B13: 7 | C13: МОГБУЗ "Сусуманская РБ" | D13: 14000 | E13: =E14 ->  | F13: =#REF! ->  | G13: =#REF! ->  | H13: ='Коэф. по ФОТ (2)'!F12 ->  | I13: ='Коэф. плотности'!F12 ->  | J13: =G13*H13*I13 ->  | O13: =ROUND(F13*$N$12,2) ->  | P13: =ROUND(O13*12,2) ->  | Q13: =ROUND(L12*F13,2) ->  | R13: =E13*F13*J13 ->  | S13: =R13+R12 ->  | T13: =E13*F13 ->  | U13: =T13+T12 ->  | V13: 21574.4 | X13: =P13-'СМП 2023 '!#REF! ->  | Y13: =P13/#REF! -> 
A14: 1340004 | B14: 6 | C14: МОГБУЗ "Среднеканская РБ" | D14: 13300 | E14: =E12 ->  | F14: =#REF! ->  | G14: =#REF! ->  | H14: ='Коэф. по ФОТ (2)'!F11 ->  | I14: ='Коэф. плотности'!F11 ->  | K14: =S15/U15 ->  | L14: =ROUND(E12*K14,2) ->  | N14: =L14/M8 ->  | O14: =ROUND(F14*$N$14,2) ->  | Q14: =ROUND(L14*F14,2) ->  | T14: =E14*F14 ->  | V14: 7997.75 | X14: =P14-'СМП 2023 '!#REF! ->  | Y14: =P14/#REF! -> 
A15: 1340011 | B15: 8 | C15: МОГБУЗ "Тенькинская РБ" | D15: 6000 | E15: =E13 ->  | F15: =#REF! ->  | G15: =#REF! ->  | H15: ='Коэф. по ФОТ (2)'!F13 ->  | I15: ='Коэф. плотности'!F13 ->  | O15: =ROUND(F15*$N$14,2) ->  | Q15: =ROUND(F15*L14,2) ->  | S15: =R15+R14 ->  | T15: =E15*F15 ->  | U15: =T15+T14 ->  | V15: 20483.75 | X15: =P15-'СМП 2023 '!#REF! ->  | Y15: =P15/#REF! -> 
C16: ИТОГО Магаданская область (без Северо-Эвенского района) | D16: 443213 | F16: =SUM(F8:F15) ->  | O16: =SUM(O8:O15) ->  | P16: =SUM(P8:P15) ->  | Q16: =SUM(Q8:Q15) ->  | T16: =E16*F16 ->  | V16: =SUM(V8:V15) -> 299791.2
E17: =310832010+57678300 -> 368510310 | F17: =E17/F16 ->  | O17: =Q17-O16 ->  | P17: =E17 -> 368510310 | Q17: =P17/12 -> 30709192.5 | S17: ='СМП 2017 (2)'!S13 ->  | U17: ='СМП 2017 (2)'!U13 -> 
P18: =P17-P16 -> 
E19: 310832.01 | F19: за 2016 год | P19: =P17/#REF! -> 
P20: =P19/12 -> 

Sheet Коэф. плотности (hidden)
A1: РАСЧЁТ
A2: КОЭФФИЦИЕНТА ПЛОТНОСТИ НАСЕЛЕНИЯ
A4: № п.п. | B4: Наименование МО | C4: Численность обслуживаемых, застрахованных лиц на 01.01.16 (чел.) | D4: Кол-во вызовов | E4: Фонд оплаты труда, рассчитанный по подушевому нормативу | F4: Коэффициент дифференциации, учитывающий достижение целевых показателей уровня заработной платы медицинских работников, установленных региональной "дорожной картой" (КДЗП)
A7: 1 | B7: 2 | C7: 3 | D7: 4 | E7: 5 | F7: 6
A8: 1 | B8: МОГБУЗ "Станция скорой медицинской помощи" | C8: =#REF! ->  | D8: 26482 | E8: =D8/C8 ->  | F8: =ROUND(E8/$E$16,3) -> 
A9: 2 | B9: МОГБУЗ "Ольская РБ" | C9: =#REF! ->  | D9: 4277 | E9: =D9/C9 ->  | F9: =ROUND(E9/$E$16,3) -> 
A10: 3 | B10: МОГБУЗ "Омсукчанская РБ" | C10: =#REF! ->  | D10: 2304
A11: 4 | B11: МОГБУЗ "Среднеканская РБ" | C11: =#REF! ->  | D11: 1151
A12: 5 | B12: МОГБУЗ "Сусуманская РБ" | C12: =#REF! ->  | D12: 3144
A13: 6 | B13: МОГБУЗ "Тенькинская РБ" | C13: =#REF! ->  | D13: 2245
A14: 7 | B14: МОГБУЗ "Хасынская РБ" | C14: =#REF! ->  | D14: 2145
A15: 8 | B15: МОГБУЗ "Ягоднинская РБ" | C15: =#REF! ->  | D15: 4454
B16: ИТОГО Магаданская область (без Северо-Эвенского района) | C16: =SUM(C8:C15) ->  | D16: =SUM(D8:D15) -> 46202
E17: 3
A20: № п.п. | B20: Наименование МО | C20: Численность обслуживаемых, застрахованных лиц на 01.01.16 (чел.) | D20: Кол-во вызовов | E20: Фонд оплаты труда, рассчитанный по подушевому нормативу | F20: Коэффициент дифференциации, учитывающий достижение целевых показателей уровня заработной платы медицинских работников, установленных региональной "дорожной картой" (КДЗП)
A23: 1 | B23: 2 | C23: 3 | D23: 4 | E23: 5 | F23: 6
A24: 1 | B24: МОГБУЗ "Станция скорой медицинской помощи" | C24: =#REF! ->  | D24: 82.04 | F24: =ROUND(E24/$E$16,3) -> 
A25: 2 | B25: МОГБУЗ "Ольская РБ" | C25: =#REF! ->  | D25: 0.13 | F25: =ROUND(E25/$E$16,3) -> 
A26: 3 | B26: МОГБУЗ "Омсукчанская РБ" | C26: =#REF! ->  | D26: 0.09
A27: 4 | B27: МОГБУЗ "Среднеканская РБ" | C27: =#REF! ->  | D27: 0.03
A28: 5 | B28: МОГБУЗ "Сусуманская РБ" | C28: =#REF! ->  | D28: 0.17
A29: 6 | B29: МОГБУЗ "Тенькинская РБ" | C29: =#REF! ->  | D29: 0.13
A30: 7 | B30: МОГБУЗ "Хасынская РБ" | C30: =#REF! ->  | D30: 0.38
A31: 8 | B31: МОГБУЗ "Ягоднинская РБ" | C31: =#REF! ->  | D31: 0.29
B32: ИТОГО Магаданская область (без Северо-Эвенского района) | C32: =SUM(C24:C31) ->  | D32: 0.32 | E32: =D32/C32 -> 

Sheet СМП 2023
L1: Приложение № 4
K2: к Дополнительному соглашению № 4
L3: от "19" июля 2023 года
B6: Объем финансового обеспечения медицинских организаций, оказывающих скорую медицинскую помощь за счёт средств обязательного медицинского страхования в 2023 году (вступает в силу с 01 мая 2023 года)
B8: Таблица 1
B9: № п.п. | C9: Наименование МО | D9: Подушевой норматив финасирования СМП (на месяц) | E9: Численность прикрепленных, застрахованных лиц на 01.05.2023 (чел.) | F9: Коэффициенты, принимающие участие в расчете дифференцированных подушевых нормативов финансирования для медицинских организаций | I9: Дифференцированны подушевой норматив финасирования СМП для i группы | J9: Поправочный коэффициент | K9: Фактический дифференцированный подушевой норматив финансирования СМП для i группы | L9: Ежемесячный объем финансового обеспечения медицинской организации, оказывающей СМП по подушевому финансированию с 01.05.2023 | M9: Объем финансового обеспечения медицинской организации, оказывающей СМП по подушевому финансированию
F10: коэффициент половозрастного состава | G10: коэффициент уровня расходов медицинских организаций (особенности плотности населения, транспортной доступности, климатических и географических особенностей, размер медицинской организации) | H10: коэффициент достижения целевых показателей уровня заработной платы медицинских работников, установленных «дорожными картами» развития здравоохранения в субъекте РФ
D11: ПНБАЗ | F11: КДПВ | G11: КДур | H11: КДПН | I11: Дпнi | J11: ПК | K11: ФДпнi | L11: в месяц | M11: на год
B12: 1 | C12: 2 | D12: 3 | E12: 4 | F12: 5 | G12: 6 | H12: 7 | I12: 8 | J12: 9 | K12: 10 | L12: 11 | M12: 12
A13: 1343001 | B13: 1 | C13: МОГБУЗ "Станция скорой медицинской помощи" | D13: 282.4214775 | E13: 105357 | F13: 1.00165 | G13: 1.015 | H13: 1 | I13: 287.1590737 | J13: 0.9665548792 | K13: 277.555004 | L13: 29242362.56 | M13: 350161767
B14: 2 | C14: ГБУЗ "Магаданская областная больница" | D14: 282.4214775 | E14: 26299 | F14: 0.99373 | G14: 1.113 | H14: 1 | I14: 312.3642233 | K14: 301.917164 | L14: 7940119.5 | M14: 95498633.88
